bitfinex-derivatives/quotes_ETHF0:USTF0_20250607
["timestamp","ask_amount","ask_price","bid_price","bid_amount"]
[1749312059580,0.00592204,2521.3,2521.2,0.79283]
[1749312059772,1.19580544,2521.3,2521.2,0.79283]
[1749312059972,0.00592204,2521.3,2521.2,0.79283]
[1749312060874,7.8358,2521.7,2521.1,4.5162]
[1749312061074,7.8358,2521.7,2520.9,1.3823499]
[1749312061075,0.79281,2521.3,2521.2,0.79282]
[1749312061283,1.18982487,2521.3,2521.2,0.79282]
[1749312061572,8.64002487,2521.3,2521.2,0.79282]
[1749312062381,0.79285,2521.2,2521.1,0.79285]
[1749312062574,3.97877487,2521.2,2521.1,0.79285]
[1749312062775,3.97877487,2521.2,2521.1,0.79286]
[1749312064471,3.97877487,2521.2,2520.9,0.6948499]
[1749312064472,0.79289,2521.0,2520.9,0.0059499]
[1749312064670,0.79289,2521.0,2520.9,0.7988799]
[1749312064671,4.39762487,2521.0,2520.9,0.7988799]
[1749312065076,5.06442487,2521.0,2520.9,0.7988799]
[1749312065481,4.39762487,2521.0,2520.9,0.7988799]
[1749312069585,5.19051487,2521.0,2520.9,0.7988799]
[1749312069786,5.19051487,2521.0,2520.9,0.0059499]
[1749312071188,5.19051487,2521.0,2520.9,0.7988799]
[1749312071588,4.39762487,2521.0,2520.9,0.7988799]
[1749312074090,1.18982487,2521.0,2520.9,0.7988799]
[1749312075800,1.98271487,2521.0,2520.9,0.7988799]
[1749312076000,5.19051487,2521.0,2520.9,0.7988799]
[1749312076593,4.39762487,2521.0,2520.9,0.7988799]
[1749312078297,1.18982487,2521.0,2520.9,0.7988799]
[1749312078698,4.628,2521.3,2521.2,0.79283]
[1749312078997,5.81656588,2521.3,2521.2,0.79283]
[1749312080401,1.18856588,2521.3,2521.2,0.79283]
[1749312081403,0.79285,2521.2,2521.1,0.79285]
[1749312081694,1.18856588,2521.2,2521.1,0.79285]
[1749312081901,5.81562706,2521.3,2521.0,1.98224]
[1749312082201,1.18862706,2521.2,2521.1,2.70776]
[1749312084293,7.8348,2521.4,2521.3,0.7928]
[1749312084500,9.02316638,2521.4,2521.3,0.7928]
[1749312087901,4.39616638,2521.4,2521.3,0.7928]
[1749312089218,5.18893638,2521.4,2521.3,0.7928]
[1749312091120,5.84143638,2521.4,2521.3,0.7928]
[1749312091317,0.79289,2521.0,2520.9,0.0059499]
[1749312091613,1.98248,2520.8,2520.2,5.9735]
[1749312091813,3.2078,2520.5,2520.3,0.79309]
[1749312092015,1.9772592,2520.4,2520.3,0.79309]
[1749312092219,3.2078,2520.5,2520.3,0.79309]
[1749312092414,4.66377,2520.5,2520.2,0.6427]
[1749312092619,5.91957,2520.5,2520.2,0.6427]
[1749312093020,0.79308,2520.4,2520.3,0.79309]
[1749312093416,5.1265,2520.5,2520.1,0.0059499]
[1749312093623,3.2078,2520.2,2520.1,0.7991299]
[1749312098622,0.6816,2520.3,2520.2,0.79315]
[1749312099018,1.47471,2520.3,2520.2,0.79315]
[1749312099220,2.84921,2520.3,2520.2,0.79315]
[1749312100124,0.79315,2520.2,2520.1,0.7991099]
[1749312100323,4.5823,2520.2,2520.1,0.7991099]
[1749312100726,5.37545,2520.2,2520.1,0.0059499]
[1749312100921,10.00345,2520.2,2520.1,0.0059499]
[1749312101719,10.00345,2520.2,2520.1,0.7991299]
[1749312105426,10.00345,2520.2,2520.1,0.0059499]
[1749312106727,10.00345,2520.2,2520.1,0.7991299]
[1749312106927,10.00345,2520.2,2520.1,0.0059499]
[1749312107226,10.00345,2520.2,2520.1,0.7991299]
[1749312109728,7.8358,2520.2,2520.1,0.7991299]
[1749312111229,3.2078,2520.2,2520.1,0.7991299]
[1749312111418,3.2078,2520.5,2520.4,0.79308]
[1749312111621,3.2078,2520.5,2520.1,9.0069299]
[1749312111622,0.0059499,2520.6,2520.5,0.79305]
[1749312112325,0.0059499,2520.6,2520.5,2.80975]
[1749312117133,3.2078,2521.1,2521.0,0.79289]
[1749312118036,4.00053,2521.6,2521.5,0.79274]
[1749312118337,5.180091,2521.6,2521.5,0.79274]
[1749312118532,4.387361,2521.6,2521.5,0.79274]
[1749312118729,3.2078,2521.9,2521.5,0.79274]
[1749312118931,7.8358,2522.4,2521.6,3.8688]
[1749312119137,0.79261,2521.9,2521.6,0.661]
[1749312119342,0.79272,2521.6,2521.4,0.0059499]
[1749312119636,0.79273,2521.6,2521.4,0.7986999]
[1749312119838,4.627,2521.5,2521.4,0.0059499]
[1749312120040,4.627,2521.5,2521.4,0.7987199]
[1749312120437,9.97904,2521.5,2521.4,0.0059499]
[1749312120741,14.97904,2521.5,2521.4,0.0059499]
[1749312121034,0.79301,2520.7,2520.5,2.79083]
[1749312121237,5.41997,2520.8,2520.7,0.79299]
[1749312121541,0.79303,2520.6,2520.2,0.6294]
[1749312121751,4.00083,2520.6,2520.5,0.79305]
[1749312122031,0.0059499,2520.7,2520.6,0.79302]
[1749312122639,0.0059499,2520.7,2520.5,0.79303]
[1749312122836,3.2078,2520.6,2520.5,0.79305]
[1749312124936,7.8348,2520.6,2520.5,0.79305]
[1749312130749,7.8348,2520.6,2520.2,1.9535]
[1749312131039,7.8818,2520.6,2520.5,0.79305]
[1749312131244,3.2078,2520.6,2520.5,0.79305]
[1749312133442,0.0059499,2520.7,2520.6,0.79302]
[1749312135740,0.79302,2520.6,2520.5,0.79303]
[1749312136044,5.31132,2520.6,2520.5,0.79303]
[1749312136550,5.8356,2520.6,2520.5,0.79303]
[1749312140054,3.2078,2520.6,2520.5,0.79303]
[1749312140554,3.2078,2520.6,2520.2,0.6294]
[1749312140742,3.2078,2520.3,2520.1,0.0059499]
[1749312140941,3.95385447,2520.2,2520.1,0.0059499]
[1749312142250,3.16070447,2520.2,2520.1,0.7991299]
[1749312142854,3.95385447,2520.2,2520.1,0.7991299]
[1749312143543,3.16070447,2520.2,2520.1,0.7991299]
[1749312143942,6.16165,2520.2,2520.1,0.0059499]
[1749312144144,8.60885187,2520.2,2520.1,0.0059499]
[1749312144546,7.81570187,2520.2,2520.1,0.7991299]
[1749312144743,6.6502,2520.2,2520.1,0.7991299]
[1749312144950,5.3685,2520.2,2520.1,0.7991299]
[1749312145151,7.8818,2520.3,2520.2,0.79315]
[1749312145351,9.04687518,2520.3,2520.2,0.79315]
[1749312145548,7.8818,2520.3,2520.2,0.79315]
[1749312147659,4.674,2520.3,2520.2,0.79315]
[1749312147852,4.674,2520.3,2520.2,2.11395]
[1749312148051,4.00084,2520.6,2520.5,0.79305]
[1749312148246,9.84050998,2520.6,2520.5,0.79305]
[1749312148654,0.79306,2520.5,2520.4,0.79307]
[1749312148854,0.79308,2520.4,2520.3,0.79309]
[1749312149254,0.79308,2520.4,2520.1,0.0059499]
[1749312149459,1.9596241,2520.4,2520.3,0.79311]
[1749312149961,1.1665441,2520.4,2520.3,0.79311]
[1749312150360,1.9596241,2520.4,2520.3,0.79311]
[1749312150561,1.1665441,2520.4,2520.3,0.79311]
[1749312150757,0.79312,2520.3,2520.2,0.79312]
[1749312151357,1.3871,2520.5,2520.1,0.0059499]
[1749312151662,1.16661523,2520.4,2520.3,0.79308]
[1749312155666,1.95969523,2520.4,2520.3,0.79308]
[1749312155874,1.16661523,2520.4,2520.3,0.79308]
[1749312156667,1.95966326,2520.4,2520.3,0.79308]
[1749312157168,1.16658326,2520.4,2520.3,0.79308]
[1749312157768,1.95966326,2520.4,2520.3,0.79308]
[1749312158369,1.16658326,2520.4,2520.1,0.0059499]
[1749312158572,0.79315,2520.2,2520.1,0.7990999]
[1749312158869,4.00094,2520.3,2520.2,0.79315]
[1749312159066,0.79315,2520.2,2520.1,0.0059499]
[1749312159279,3.30860931,2520.2,2520.1,0.0059499]
[1749312161364,3.30860931,2520.2,2520.1,0.7991299]
[1749312162468,3.30860931,2520.2,2520.1,0.0059499]
[1749312162668,3.30860931,2520.2,2519.4,2.023]
[1749312162669,0.79328,2519.9,2519.8,0.79327]
[1749312162858,7.8798,2519.9,2519.8,0.79327]
[1749312164167,4.673,2520.1,2519.7,1.98326]
[1749312164368,4.673,2520.1,2520.0,0.79321]
[1749312164570,1.17007753,2520.1,2520.0,0.79321]
[1749312164757,3.2078,2520.2,2520.1,0.79318]
[1749312164957,0.0059499,2520.7,2520.6,0.79302]
[1749312165165,1.17613974,2520.7,2520.6,0.79302]
[1749312165478,1.17613974,2520.7,2520.6,2.16122]
[1749312165479,0.0059499,2520.7,2520.6,2.16122]
[1749312169565,0.0059499,2520.7,2520.6,0.79302]
[1749312169965,0.79311,2520.4,2519.8,5.19094]
[1749312170169,0.79311,2520.3,2520.1,0.79316]
[1749312170370,0.79311,2520.3,2519.8,3.2078]
[1749312170570,0.7931,2520.4,2520.3,0.79311]
[1749312170764,1.95730706,2520.4,2520.3,0.79311]
[1749312171073,1.16420706,2520.4,2520.3,0.79311]
[1749312171269,4.6779499,2520.7,2520.6,0.79302]
[1749312171470,5.84207564,2520.7,2520.6,0.79302]
[1749312172672,0.79305,2520.5,2520.4,1.44847]
[1749312173071,0.79305,2520.5,2520.4,0.79307]
[1749312173273,0.79311,2520.4,2520.2,3.2078]
[1749312173475,2.77044,2520.6,2520.5,0.79305]
[1749312173773,3.13919355,2520.6,2520.4,0.79306]
[1749312173972,1.9774,2520.6,2520.4,0.79306]
[1749312174175,1.9774,2520.6,2520.2,3.2078]
[1749312174176,2.77044,2520.6,2520.5,0.79305]
[1749312174365,3.93199392,2520.6,2520.5,0.79305]
[1749312174769,3.13895392,2520.6,2520.5,0.79305]
[1749312175873,1.79205392,2520.6,2520.5,0.79305]
[1749312176372,0.0059499,2520.7,2520.6,0.79302]
[1749312176572,5.83950305,2520.7,2520.6,0.79302]
[1749312176773,4.6779499,2520.7,2520.6,0.79302]
[1749312178272,0.0059499,2520.7,2520.6,0.79302]
[1749312179672,0.0059499,2520.7,2520.6,2.76252]
[1749312180877,0.0059499,2520.7,2520.6,1.46072]
[1749312181267,0.7989399,2520.7,2520.6,1.46072]
[1749312181587,0.0059499,2520.7,2520.6,1.46072]
[1749312183179,0.0059499,2520.7,2520.6,2.72542]
[1749312186279,0.0059499,2520.7,2520.6,1.46072]
[1749312186483,0.7989599,2520.7,2520.6,0.79302]
[1749312186780,0.0059499,2520.7,2520.6,0.79302]
[1749312187181,0.7989399,2520.7,2520.6,0.79302]
[1749312187373,0.0059499,2520.7,2520.6,0.79302]
[1749312188678,0.0059499,2520.7,2520.5,3.2078]
[1749312188679,0.7989399,2520.7,2520.5,3.2078]
[1749312188873,3.2078,2520.6,2520.4,0.6642]
[1749312189079,7.8798,2520.6,2520.2,0.79313]
[1749312189290,0.7931,2520.4,2520.3,0.7931]
[1749312189683,0.7931,2520.4,2520.3,0.79311]
[1749312189684,2.1821,2520.4,2520.3,0.79311]
[1749312190090,1.389,2520.4,2520.3,0.79311]
[1749312190287,1.3037,2520.5,2520.4,0.79308]
[1749312190483,2.09675,2520.5,2520.4,0.79308]
[1749312190677,1.3037,2520.5,2520.4,0.79308]
[1749312190886,2.6927,2520.5,2520.0,4.544]
[1749312191280,0.7931,2520.4,2520.3,0.7931]
[1749312191488,1.389,2520.4,2520.3,0.7931]
[1749312191785,1.3037,2520.5,2520.4,0.79308]
[1749312192791,3.45855,2520.5,2520.4,0.79308]
[1749312193095,2.6655,2520.5,2520.4,0.79308]
[1749312193295,3.82613587,2520.5,2520.4,0.79308]
[1749312193592,4.61918587,2520.5,2520.4,0.79308]
[1749312194194,3.82613587,2520.5,2520.4,0.79308]
[1749312195697,3.82613587,2520.5,2520.3,0.79309]
[1749312195885,1.16079355,2520.4,2520.0,3.872]
[1749312196089,2.6655,2520.5,2520.0,3.872]
[1749312196090,2.06314,2520.3,2520.2,0.79312]
[1749312196294,2.43056924,2520.3,2520.0,3.872]
[1749312196591,2.06313,2520.3,2520.2,0.79315]
[1749312196804,3.22371721,2520.3,2520.2,0.79315]
[1749312197497,2.43058721,2520.3,2520.2,0.79315]
[1749312197898,3.22371721,2520.3,2520.2,0.79315]
[1749312198897,0.79317,2520.2,2520.1,0.79317]
[1749312199099,2.51728721,2520.2,2520.1,0.79317]
[1749312199299,1.3567,2520.2,2520.1,0.79317]
[1749312199601,7.22195875,2520.2,2520.1,0.79317]
[1749312200596,5.86525875,2520.2,2520.1,0.79317]
[1749312201302,0.79318,2520.1,2520.0,3.872]
[1749312201496,0.79321,2520.0,2519.9,0.79322]
[1749312201897,1.95388796,2520.0,2519.9,0.79322]
[1749312202297,1.16067796,2520.0,2519.7,1.3176]
[1749312202498,0.79325,2519.9,2519.8,0.79327]
[1749312202897,0.79327,2519.8,2519.7,1.47369]
[1749312203198,0.79327,2519.8,2519.7,0.79329]
[1749312203396,6.0286,2519.8,2519.6,0.0059499]
[1749312203605,0.6479,2519.7,2519.6,0.7992899]
[1749312204807,4.705,2520.3,2520.2,0.79313]
[1749312205006,5.86458122,2520.3,2520.2,0.79313]
[1749312208308,1.15958122,2520.3,2520.2,0.79313]
[1749312208604,5.86458122,2520.3,2520.2,0.79313]
[1749312210504,4.705,2520.3,2520.2,0.79313]
[1749312210806,23.996,2520.4,2520.3,0.79311]
[1749312211101,1.16037805,2520.4,2520.3,0.79311]
[1749312211300,4.7109499,2520.7,2520.6,0.79302]
[1749312211503,5.87154542,2520.7,2520.6,0.79302]
[1749312211705,0.0059499,2520.7,2520.6,0.79302]
[1749312212308,0.0059499,2520.7,2520.6,2.13982]
[1749312213106,0.0059499,2520.7,2520.6,0.79302]
[1749312214407,0.0059499,2520.7,2520.6,2.14562]
[1749312217303,0.6584,2521.4,2520.6,6.3526]
[1749312217502,5.3587,2521.6,2521.5,0.79274]
[1749312217707,1.15851608,2521.6,2521.5,0.79274]
[1749312217908,4.704,2521.8,2521.7,0.79267]
[1749312218209,5.86265764,2521.8,2521.7,0.79267]
[1749312218608,6.65529764,2521.8,2521.7,0.79267]
[1749312218805,5.86265764,2521.8,2521.7,0.79267]
[1749312219114,6.65529764,2521.8,2521.7,0.79267]
[1749312219412,5.49665,2521.8,2521.5,0.0059499]
[1749312219607,5.49665,2521.8,2521.7,0.79267]
[1749312220009,5.49665,2521.8,2521.5,0.0059499]
[1749312220213,0.79269,2521.7,2521.6,0.79268]
[1749312220611,5.49665,2521.8,2521.7,0.79267]
[1749312221207,4.704,2521.8,2521.7,0.79267]
[1749312221615,24.0009499,2522.0,2521.9,0.79261]
[1749312221812,28.7039499,2522.0,2521.9,0.79261]
[1749312222007,5.5015299,2522.0,2521.9,0.79261]
[1749312222410,4.7089499,2522.0,2521.9,0.79261]
[1749312223111,5.5015299,2522.0,2521.9,0.79261]
[1749312223416,4.7089499,2522.0,2521.9,0.79261]
[1749312223918,4.7089499,2522.0,2521.8,0.79263]
[1749312224117,0.79264,2521.9,2521.8,0.79263]
[1749312224713,4.7089499,2522.0,2521.9,0.79261]
[1749312224921,0.0059499,2522.0,2521.9,0.79261]
[1749312225821,9.9e-06,2522.0,2521.9,9.00041]
[1749312226010,9.9e-06,2522.0,2521.9,10.27191]
[1749312231122,9.9e-06,2522.0,2521.9,5.27191]
[1749312231324,9.9e-06,2522.0,2521.9,4.00041]
[1749312242833,9.9e-06,2522.0,2521.9,5.27361]
[1749312243037,9.9e-06,2522.0,2521.9,10.27361]
[1749312243438,9.9e-06,2522.0,2521.9,5.27361]
[1749312245235,9.9e-06,2522.0,2521.9,8.70041]
[1749312247132,9.9e-06,2522.0,2521.9,10.02601]
[1749312252040,9.9e-06,2522.0,2521.9,15.69801]
[1749312252539,9.9e-06,2522.0,2521.9,10.69801]
[1749312259344,9.9e-06,2522.0,2521.9,5.99801]
[1749312259546,9.9e-06,2522.0,2521.9,28.90801]
[1749312260442,9.9e-06,2522.0,2521.9,27.57941]
[1749312263946,9.9e-06,2522.0,2521.9,29.51051]
[1749312266954,0.6411,2522.7,2522.6,0.79239]
[1749312267145,2.42247195,2522.7,2522.6,0.79239]
[1749312267543,0.79244,2522.5,2522.4,0.79243]
[1749312267758,5.27591,2522.6,2522.5,0.79242]
[1749312267958,6.4286912,2522.6,2522.5,0.79242]
[1749312268158,6.4286912,2522.6,2522.2,3.2078]
[1749312268159,0.79243,2522.5,2522.4,0.79243]
[1749312268354,3.2209112,2522.5,2522.4,0.79243]
[1749312268549,8.2209112,2522.5,2522.4,0.79243]
[1749312268749,7.4284812,2522.5,2522.4,0.79243]
[1749312268949,8.2209012,2522.5,2522.4,0.79243]
[1749312269556,7.4284812,2522.5,2522.4,0.79243]
[1749312270459,7.4284812,2522.5,2522.2,3.2078]
[1749312270647,0.79249,2522.3,2522.2,3.2078]
[1749312270851,1.1527812,2522.3,2522.2,4.00032]
[1749312271055,8.3308712,2522.3,2522.2,4.00032]
[1749312271351,7.5383812,2522.3,2522.2,4.00032]
[1749312271866,8.9928712,2522.3,2522.2,4.00032]
[1749312272057,8.2003812,2522.3,2522.2,4.00032]
[1749312274159,8.9928712,2522.3,2522.2,4.00032]
[1749312274457,3.9928712,2522.3,2522.2,4.00032]
[1749312274658,3.2003812,2522.3,2522.2,4.00032]
[1749312281468,1.1527812,2522.3,2522.2,4.00032]
[1749312281659,0.6326,2522.6,2522.5,0.79242]
[1749312282364,0.6411,2522.7,2522.6,0.79239]
[1749312284765,1.9919,2522.7,2522.6,0.79239]
[1749312287878,0.6326,2522.9,2522.8,0.79233]
[1749312289883,1.4249,2522.9,2522.8,0.79233]
[1749312290076,2.7954,2522.9,2522.8,0.79233]
[1749312291876,0.79242,2522.5,2522.4,3.2078]
[1749312292075,7.9198,2522.5,2521.4,5.83021]
[1749312292269,3.2078,2522.2,2522.1,0.79255]
[1749312292470,5.4043,2522.4,2522.3,0.79249]
[1749312293478,0.6923,2522.4,2522.3,0.79249]
[1749312293781,1.84834432,2522.4,2522.3,0.79249]
[1749312295675,1.84834432,2522.4,2522.2,0.7925]
[1749312295875,1.15604432,2522.3,2522.2,0.7925]
[1749312296075,2.51114432,2522.3,2522.2,0.7925]
[1749312297078,1.15604432,2522.3,2522.2,0.7925]
[1749312298281,4.712,2522.5,2522.4,0.79245]
[1749312298478,5.86758494,2522.5,2522.4,0.79245]
[1749312300383,6.66000494,2522.5,2522.4,0.79245]
[1749312300585,5.86758494,2522.5,2522.4,0.79245]
[1749312301184,1.15558494,2522.5,2522.4,0.79245]
[1749312304890,0.79232,2522.9,2522.8,0.79233]
[1749312305082,1.94804733,2522.9,2522.8,0.79233]
[1749312305283,1.15572733,2522.9,2522.8,0.79233]
[1749312306086,1.94802733,2522.9,2522.8,0.79233]
[1749312306283,1.15572733,2522.9,2522.8,0.79233]
[1749312307092,1.94802733,2522.9,2522.8,0.79233]
[1749312308486,1.15572733,2522.9,2522.8,0.79233]
[1749312308995,1.94802733,2522.9,2522.8,0.79233]
[1749312309292,1.15572733,2522.9,2522.8,0.79233]
[1749312310090,1.94802733,2522.9,2522.8,0.79233]
[1749312310494,1.15572733,2522.9,2522.8,0.79233]
[1749312311194,1.94802733,2522.9,2522.8,0.79233]
[1749312311594,1.15572733,2522.9,2522.8,0.79233]
[1749312312297,1.94802733,2522.9,2522.8,0.79233]
[1749312313993,3.24002733,2522.9,2522.8,0.79233]
[1749312314398,2.44772733,2522.9,2522.8,0.79233]
[1749312314799,1.15572733,2522.9,2522.8,0.79233]
[1749312318097,1.94802733,2522.9,2522.8,0.79233]
[1749312318298,0.79237,2522.8,2522.7,0.79233]
[1749312319102,5.33132,2522.9,2522.8,0.79233]
[1749312319306,6.48390904,2522.9,2522.8,0.79233]
[1749312319905,6.48393391,2522.9,2522.8,0.79233]
[1749312322103,5.69161391,2522.9,2522.5,4.5637]
[1749312322303,2.49321391,2522.8,2522.2,1.98123]
[1749312322614,4.712,2523.0,2522.9,0.7923]
[1749312322905,4.712,2523.0,2522.8,0.79231]
[1749312322906,6.6570426,2523.0,2522.8,0.79231]
[1749312323106,1.1527726,2522.9,2522.8,0.79231]
[1749312325413,1.9450826,2522.9,2522.6,0.6295]
[1749312325608,1.1527726,2522.8,2522.7,0.79234]
[1749312325804,2.5401726,2522.8,2522.7,0.79234]
[1749312326506,3.3325026,2522.8,2522.7,0.79234]
[1749312326702,10.7479726,2522.8,2521.8,3.2078]
[1749312326899,0.79251,2522.3,2522.1,0.79252]
[1749312327107,0.6556,2522.2,2522.1,0.79252]
[1749312327306,1.80627752,2522.2,2522.1,0.79252]
[1749312327812,0.6556,2522.2,2522.1,0.79252]
[1749312328503,0.6556,2522.2,2521.9,0.6793]
[1749312328707,0.6556,2522.2,2522.1,0.79255]
[1749312330606,5.3896,2522.2,2522.1,0.79255]
[1749312332517,1.15013259,2522.2,2522.1,0.79255]
[1749312332702,0.6703,2522.6,2522.4,0.79243]
[1749312332910,7.15981508,2522.5,2522.4,0.79243]
[1749312333115,2.42581508,2522.5,2522.4,0.79243]
[1749312333413,7.15981508,2522.5,2522.4,0.79243]
[1749312333613,7.15981508,2522.5,2522.3,0.79247]
[1749312333911,1.15001508,2522.4,2522.3,0.79247]
[1749312334315,1.94246508,2522.4,2522.3,0.79247]
[1749312335413,1.15001508,2522.4,2522.3,0.79247]
[1749312336916,0.79249,2522.3,2522.2,1.4228]
[1749312337114,1.94250508,2522.3,2522.2,1.4228]
[1749312337518,1.94250508,2522.3,2522.2,0.7925]
[1749312337708,0.79252,2522.2,2522.1,1.43114]
[1749312338013,1.15001508,2522.3,2522.0,0.6303]
[1749312338014,0.79251,2522.3,2522.2,0.79252]
[1749312338205,3.33369845,2522.3,2522.0,0.6303]
[1749312338400,1.78588845,2522.2,2522.0,0.6303]
[1749312338605,4.734,2522.1,2522.0,1.42285]
[1749312338812,5.88305544,2522.1,2522.0,1.42285]
[1749312339411,4.734,2522.1,2522.0,1.42285]
[1749312340312,5.88313445,2522.1,2522.0,1.42285]
[1749312340514,4.734,2522.1,2522.0,1.42285]
[1749312349629,5.8834265,2522.1,2522.0,1.42285]
[1749312353941,6.6759765,2522.1,2522.0,0.79255]
[1749312355236,5.8834265,2522.1,2522.0,0.79255]
[1749312355839,6.6759765,2522.1,2522.0,0.79255]
[1749312357236,6.6759765,2522.1,2521.8,3.8841]
[1749312357237,5.8834265,2522.1,2521.8,3.2078]
[1749312357436,1.9420165,2522.0,2521.9,0.79261]
[1749312358131,0.79263,2521.9,2521.8,0.79264]
[1749312358341,1.1494265,2521.9,2521.8,0.79264]
[1749312361246,1.15084888,2522.0,2521.6,1.98169]
[1749312361444,5.88184888,2521.9,2521.8,0.79264]
[1749312361743,5.88184888,2521.9,2521.8,1.43824]
[1749312361945,1.15084888,2521.9,2521.8,1.43824]
[1749312362834,1.15084888,2521.9,2521.8,4.64604]
[1749312363238,1.15084888,2521.9,2521.8,1.43824]
[1749312364050,4.732,2522.1,2522.0,0.79258]
[1749312364350,5.88283087,2522.1,2522.0,0.79258]
[1749312365540,1.15083087,2522.1,2522.0,0.79258]
[1749312365848,1.15083087,2522.1,2522.0,2.14598]
[1749312366349,4.732,2522.2,2522.1,0.79255]
[1749312366549,5.88263563,2522.2,2522.1,5.35375]
[1749312367051,5.88263563,2522.2,2522.1,2.14595]
[1749312367255,5.88263563,2522.2,2521.9,0.6788]
[1749312367454,0.79258,2522.0,2521.9,1.47138]
[1749312367750,0.79261,2521.9,2521.8,0.6456]
[1749312367957,1.15063563,2521.9,2521.8,0.79264]
[1749312368146,0.79265,2521.8,2521.7,0.79266]
[1749312368346,0.79262,2521.9,2521.8,0.79264]
[1749312368548,1.94341981,2521.9,2521.8,0.79264]
[1749312368746,1.15079981,2521.9,2521.8,0.79264]
[1749312370451,1.94340981,2521.9,2521.8,0.79264]
[1749312370648,1.15079981,2521.9,2521.8,0.79264]
[1749312372950,1.94340981,2521.9,2521.8,0.79264]
[1749312373149,1.15079981,2521.9,2521.8,0.79264]
[1749312373655,4.0004,2522.0,2521.9,0.79261]
[1749312373947,6.41974846,2522.0,2521.9,0.79261]
[1749312378453,5.14374846,2522.0,2521.9,0.79261]
[1749312378656,4.35114846,2522.0,2521.9,0.79261]
[1749312379356,5.14372846,2522.0,2521.9,0.79261]
[1749312380152,4.35114846,2522.0,2521.9,0.79261]
[1749312380359,5.14372846,2522.0,2521.9,0.79261]
[1749312381863,0.79262,2521.9,2521.8,0.79263]
[1749312382158,1.93596846,2521.9,2521.8,0.79263]
[1749312384358,1.14334846,2521.9,2521.8,0.79263]
[1749312386451,5.84434846,2521.9,2521.8,0.79263]
[1749312389453,5.84434846,2521.9,2521.6,0.6933]
[1749312389752,3.2078,2521.7,2521.6,0.79269]
[1749312389953,4.35114846,2521.7,2521.6,0.79269]
[1749312390155,0.79271,2521.6,2521.5,0.7986699]
[1749312390463,1.93605846,2521.6,2521.5,0.0059499]
[1749312390757,0.79284,2521.2,2521.1,0.79286]
[1749312391058,6.63718846,2521.2,2521.1,0.79286]
[1749312391247,5.84434846,2521.2,2521.1,0.79286]
[1749312391553,6.48014846,2521.2,2521.1,0.79286]
[1749312392458,7.27297846,2521.2,2521.0,0.79288]
[1749312392762,0.79289,2521.0,2520.9,0.0059499]
[1749312392961,5.14403846,2521.0,2520.9,0.0059499]
[1749312393155,6.44863846,2521.0,2520.9,0.0059499]
[1749312394259,0.79306,2520.5,2520.3,1.426]
[1749312394458,5.49406,2520.5,2520.3,1.426]
[1749312394657,4.701,2520.5,2520.3,1.426]
[1749312394857,4.701,2520.5,2520.4,0.79308]
[1749312395058,4.701,2520.5,2520.3,1.426]
[1749312395258,4.701,2520.5,2520.4,0.79308]
[1749312396553,5.49407,2520.5,2520.3,1.426]
[1749312396761,0.79308,2520.4,2520.1,1.4948999]
[1749312397056,2.09248,2520.4,2520.1,1.4948999]
[1749312397256,1.2994,2520.4,2520.1,1.4948999]
[1749312397457,1.2994,2520.4,2520.1,0.7017499]
[1749312397658,2.0925,2520.4,2520.2,0.79314]
[1749312397857,2.09251,2520.4,2520.1,1.4949299]
[1749312398058,0.79312,2520.3,2520.1,1.4949299]
[1749312399162,4.5072,2520.4,2520.1,1.4949299]
[1749312399372,2.0925,2520.4,2520.2,0.79315]
[1749312399570,2.09251,2520.4,2520.2,0.79315]
[1749312399866,0.79311,2520.3,2520.1,1.4949099]
[1749312400165,5.3003,2520.4,2520.2,0.79315]
[1749312400363,5.3003,2520.4,2520.3,0.79311]
[1749312400563,3.2078,2520.4,2520.3,0.79311]
[1749312400763,4.00088,2520.4,2520.3,0.79311]
[1749312400965,3.2078,2520.4,2520.3,0.79311]
[1749312401463,4.701,2520.5,2520.4,0.79308]
[1749312401762,1.98208,2521.3,2521.0,0.79289]
[1749312401763,4.703,2521.1,2521.0,0.79289]
[1749312402164,0.0059499,2521.4,2521.3,0.7928]
[1749312402367,4.7089499,2521.4,2521.3,0.7928]
[1749312408974,5.5017199,2521.4,2521.2,0.79281]
[1749312409173,4.7089499,2521.4,2521.0,0.79287]
[1749312409381,0.79282,2521.3,2521.1,0.79284]
[1749312409673,0.79284,2521.2,2521.0,0.79287]
[1749312409871,0.79281,2521.3,2521.1,0.79284]
[1749312411178,4.7089499,2521.4,2521.2,0.79283]
[1749312412177,0.79281,2521.3,2521.1,0.79284]
[1749312412369,4.7089499,2521.4,2521.1,0.79284]
[1749312412570,0.79283,2521.3,2521.1,0.79284]
[1749312412876,0.79289,2521.1,2521.0,0.79289]
[1749312413074,3.8692,2521.3,2521.0,0.79289]
[1749312413375,0.79287,2521.1,2520.8,1.375]
[1749312413677,4.705,2521.0,2520.9,0.79293]
[1749312414476,4.705,2521.0,2520.9,2.17703]
[1749312417078,0.0059499,2521.4,2521.3,0.7928]
[1749312417282,4.7109499,2521.4,2521.3,0.7928]
[1749312418177,5.5037199,2521.4,2521.3,0.7928]
[1749312420377,4.7109499,2521.4,2521.3,0.7928]
[1749312421478,0.0059499,2521.4,2521.3,0.7928]
[1749312421886,4.7109499,2521.4,2521.3,0.7928]
[1749312422373,0.0059499,2521.4,2521.3,0.7928]
[1749312422578,0.0059499,2521.4,2521.3,9.0006]
[1749312423167,0.0059499,2521.4,2521.3,10.312]
[1749312426581,0.0059499,2521.4,2521.3,5.312]
[1749312430279,0.0059499,2521.4,2521.3,5.9829]
[1749312431979,4.705,2521.7,2521.6,0.79271]
[1749312432180,5.84280697,2521.7,2521.6,0.79271]
[1749312432680,4.705,2521.7,2521.6,0.79271]
[1749312432980,4.705,2521.7,2521.6,1.44801]
[1749312433383,0.0059499,2521.9,2521.8,0.79264]
[1749312433581,1.14407169,2521.9,2521.8,0.79264]
[1749312434778,0.0059499,2521.9,2521.8,0.79264]
[1749312436181,1.93635931,2521.9,2521.8,0.79264]